fUSD/lending_fUSD_20251013
["ID","MTS","AMOUNT","RATE_DAILY","PERIOD"]
[391123462,1760368248446,-10220.82304853,0.000209,2]
[391123463,1760368248455,-948.53,0.00020904,2]
[391123464,1760368248464,-694.86,0.00020904,2]
[391123465,1760368248473,-694.86,0.00020904,2]
[391123466,1760368248482,-694.86,0.00020904,2]
[391123467,1760368248492,-694.86,0.00020904,2]
[391123468,1760368248502,-1389.72,0.00020904,2]
[391123469,1760368248511,-694.86,0.00020904,2]
[391123470,1760368248520,-948.21,0.00020904,2]
[391123471,1760368248529,-694.86,0.00020904,2]
[391123472,1760368248539,-694.86,0.00020904,2]
[391123473,1760368248548,-694.86,0.00020904,2]
[391123474,1760368248557,-694.86,0.00020904,2]
[391123475,1760368248569,-20000.0,0.00021,2]
[391123476,1760368248578,-41257.92208508,0.00021,2]
[391123477,1760368248587,-350.0,0.00021,2]
[391123478,1760368248596,-1439.03858,0.00021,2]
[391123479,1760368248606,-1702.78,0.00021003,4]
[391123480,1760368248615,-176.72,0.00021034,4]
[391123481,1760368248625,-694.68,0.00021036,2]
[391123482,1760368248634,-1825.92,0.00021064,4]
[391123483,1760368248643,-1311.76,0.00021089,4]
[391123484,1760368248652,-475.32661018,0.000211,7]
[391123485,1760368248662,-10220.82304853,0.000211,2]
[391123486,1760368248671,-5000.0,0.0002112,4]
[391123487,1760368248680,-5000.0,0.0002114,4]
[391123488,1760368248690,-155.93,0.00021168,4]
[391123489,1760368248699,-5000.0,0.00021205,4]
[391123490,1760368248708,-2524.27,0.00021269,4]
[391123491,1760368248718,-10220.82304853,0.000213,2]
[391123492,1760368248727,-5000.0,0.00021315,4]
[391123493,1760368248737,-6135.71219613,0.00021341,2]
[391123494,1760368248746,-6285.18,0.0002137,2]
[391123495,1760368248755,-5000.0,0.00021404,4]
[391123496,1760368248765,-150.0,0.00021441,2]
[391123497,1760368248774,-150.0,0.00021441,2]
[391123498,1760368248783,-150.0,0.00021441,2]
[391123499,1760368248793,-340.85,0.00021441,2]
[391123500,1760368248802,-5000.0,0.00021458,4]
[391123501,1760368248811,-57210.53154844,0.000215,2]
[391123502,1760368248824,-10220.82304853,0.000215,2]
[391123503,1760368248833,-2303.21,0.00021521,4]
[391123504,1760368248843,-5000.0,0.00021557,4]
[391123505,1760368248852,-8470.01240356,0.00021567,2]
[391123506,1760368248861,-928.65,0.00021567,4]
[391123507,1760368248870,-2799.12,0.00021568,4]
[391123508,1760368248879,-5000.0,0.00021591,4]
[391123509,1760368248888,-2142.24,0.00021602,4]
[391123510,1760368248898,-1104.95,0.00021631,2]
[391123511,1760368248907,-5000.0,0.00021658,4]
[391123512,1760368248916,-5000.0,0.00021669,4]
[391123513,1760368248925,-2372.08,0.00021698,4]
[391123514,1760368248935,-10220.82304853,0.000217,2]
[391123515,1760368248944,-5000.0,0.00021742,4]
[391123516,1760368248953,-5000.0,0.00021751,4]
[391123517,1760368248962,-5000.0,0.00021768,4]
[391123518,1760368248971,-17771.35,0.00021862,4]
[391123519,1760368248980,-5010.81127214,0.00021885,2]
[391123520,1760368248989,-5000.0,0.00021895,4]
[391123521,1760368248998,-10000.0,0.00021917,2]
[391123522,1760368249007,-5000.0,0.00021918,2]
[391123523,1760368249016,-2980.28488341,0.0002192,4]
[391123524,1760368249025,-2980.28488341,0.0002192,4]
[391123525,1760368249034,-2980.28488341,0.0002192,4]
[391123526,1760368249043,-2980.28488341,0.0002192,4]
[391123527,1760368249052,-2980.28488341,0.0002192,4]
[391123528,1760368249062,-2980.28488341,0.0002192,4]
[391123529,1760368249073,-2980.28488341,0.0002192,4]
[391123530,1760368249082,-2980.28488341,0.0002192,4]
[391123531,1760368249091,-2980.28488341,0.0002192,4]
[391123532,1760368249099,-2980.28488341,0.0002192,4]
[391123533,1760368249108,-2980.28488341,0.0002192,4]
[391123534,1760368249118,-2980.28488341,0.0002192,4]
[391123535,1760368249127,-2980.28488341,0.0002192,4]
[391123536,1760368249136,-2980.28488341,0.0002192,4]
[391123537,1760368249145,-2980.28488341,0.0002192,4]
[391123538,1760368249154,-2980.28488341,0.0002192,4]
[391123539,1760368249163,-2980.28488341,0.0002192,4]
[391123540,1760368249173,-2980.28488341,0.0002192,4]
[391123541,1760368249182,-2980.28488341,0.0002192,4]
[391123542,1760368249191,-2980.28,0.0002192,4]
[391123543,1760368249200,-2801.04454597,0.0002192,4]
[391123544,1760368249209,-2801.04454597,0.0002192,4]
[391123545,1760368249218,-2801.04454597,0.0002192,4]
[391123546,1760368249227,-2801.04454597,0.0002192,4]
[391123547,1760368249237,-2801.04454597,0.0002192,4]
[391123548,1760368249246,-2801.04454597,0.0002192,4]
[391123549,1760368249255,-2801.04454597,0.0002192,4]
[391123550,1760368249265,-2801.04454597,0.0002192,4]
[391123551,1760368249275,-2801.04454597,0.0002192,4]
[391123552,1760368249284,-2801.04454597,0.0002192,4]
[391123553,1760368249293,-2801.04454597,0.0002192,4]
[391123554,1760368249303,-2801.04454597,0.0002192,4]
[391123555,1760368249318,-2801.04454597,0.0002192,4]
[391123556,1760368249328,-2801.04454597,0.0002192,4]
[391123557,1760368249338,-2801.04454597,0.0002192,4]
[391123558,1760368249348,-2801.04454597,0.0002192,4]
[391123559,1760368249357,-2801.04454597,0.0002192,4]
[391123560,1760368249367,-2801.04454597,0.0002192,4]
[391123561,1760368249376,-2801.04454597,0.0002192,4]
[391123562,1760368249387,-2801.04,0.0002192,4]
[391123563,1760368249397,-248.27,0.00021942,4]
[391123564,1760368249406,-5000.0,0.00021969,4]
[391123565,1760368249416,-5000.0,0.00021972,4]
[391123566,1760368249425,-675.39,0.00021995,4]
[391123567,1760368249434,-15192.42813762,0.00022,4]
[391123568,1760368249443,-4395.31,0.00022,7]
[391123569,1760368249453,-4092.06765063,0.00022,2]
[391123570,1760368249462,-10220.82304853,0.00022,2]
[391123571,1760368249472,-4013.0,0.00022133,2]
[391123572,1760368249481,-556.0,0.00022133,2]
[391123573,1760368249490,-1952.39,0.00022133,2]
[391123574,1760368249499,-311.39,0.00022137,2]
[391123575,1760368249508,-546.38,0.00022137,2]
[391123576,1760368249518,-546.38,0.00022137,2]
[391123577,1760368249527,-174.72,0.00022137,2]
[391123578,1760368249536,-546.38,0.00022137,2]
[391123579,1760368249545,-175.94,0.00022137,2]
[391123580,1760368249554,-175.94,0.00022137,2]
[391123581,1760368249563,-175.94,0.00022137,2]
[391123582,1760368249573,-546.38,0.00022137,2]
[391123583,1760368249582,-960.05,0.00022137,2]
[391123584,1760368249591,-175.94,0.00022137,2]
[391123585,1760368249601,-175.94,0.00022137,2]
[391123586,1760368249610,-546.38,0.00022137,2]
[391123587,1760368249619,-175.94,0.00022137,2]
[391123588,1760368249628,-1160.14,0.00022137,2]
[391123589,1760368249637,-175.94,0.00022137,2]
[391123590,1760368249647,-175.94,0.00022137,2]
[391123591,1760368249660,-175.94,0.00022137,2]
[391123592,1760368249670,-556.34,0.00022137,2]
[391123593,1760368249681,-175.94,0.00022137,2]
[391123594,1760368249692,-6135.71219613,0.00022147,2]
[391123595,1760368249703,-10220.82304853,0.000222,2]
[391123596,1760368249714,-150.0,0.00022247,2]
[391123597,1760368249724,-150.0,0.00022247,2]
[391123598,1760368249733,-150.0,0.00022247,2]
[391123599,1760368249743,-729.25,0.00022269,2]
[391123600,1760368249752,-825.56,0.00022269,2]
[391123601,1760368249762,-1092.18,0.00022269,2]
[391123602,1760368249771,-4094.0,0.000223,2]
[391123603,1760368249781,-10220.82304853,0.000224,2]
[391123604,1760368249790,-8470.01240356,0.000224,2]
[391123605,1760368249800,-2006.92,0.00022401,30]
[391123606,1760368249811,-35014.72254548,0.000225,2]
[391123607,1760368249824,-150.0,0.000225,7]
[391123608,1760368249833,-1000.0,0.000225,4]
[391123609,1760368249842,-731.0,0.00022575,2]
[391123610,1760368249851,-3404.0,0.00022575,2]
[391123611,1760368249862,-2047.0,0.00022575,2]
[391123612,1760368249873,-1309.0,0.00022575,2]
[391123613,1760368249882,-604.0,0.00022575,2]
[391123614,1760368249891,-571.0,0.00022575,2]
[391123615,1760368249901,-1588.0,0.00022575,2]
[391123616,1760368249910,-816.0,0.00022575,2]
[391123617,1760368249923,-10220.82304853,0.000226,2]
[391123618,1760368249932,-19128.07561426,0.000229,2]
[391123619,1760368249941,-10220.82304853,0.000229,2]
[391123620,1760368249951,-175.94,0.00022959,2]
[391123621,1760368249964,-175.87,0.00022959,2]
[391123622,1760368249973,-150.0,0.00022959,2]
[391123623,1760368249985,-150.0,0.00022959,2]
[391123624,1760368249995,-165.0,0.00023,5]
[391123625,1760368250004,-9936.06757785,0.00023,2]
[391123626,1760368250014,-400.0,0.00023,2]
[391123627,1760368250024,-1439.03858,0.00023,2]
[391123628,1760368250035,-5513.0,0.00023,3]
[391123629,1760368250045,-150.0,0.00023094,2]
[391123630,1760368250055,-10220.82304853,0.000231,2]
[391123631,1760368250065,-642.44038922,0.00023162,2]
[391123632,1760368250075,-51464.1750868,0.000232,2]
[391123633,1760368250084,-175.78,0.00023262,2]
[391123634,1760368250094,-10000.0,0.00023287,4]
[391123635,1760368250104,-10220.82304853,0.000233,2]
[391123636,1760368250114,-2000.0,0.000234,2]
[391123637,1760368250125,-10220.82304853,0.000235,2]
[391123638,1760368250135,-984.98520626,0.00023606,2]
[391123639,1760368250145,-16491.49538223,0.00023666,2]
[391123640,1760368250155,-208.1339408,0.00023706,2]
[391123641,1760368250165,-150.0,0.00023781,2]
[391123642,1760368250175,-150.0,0.00023781,2]
[391123643,1760368250184,-150.0,0.00023781,2]
[391123644,1760368250194,-294.02,0.00023781,2]
[391123645,1760368250204,-150.0,0.00023781,2]
[391123646,1760368250214,-300.0,0.00023781,2]
[391123647,1760368250224,-150.0,0.00023781,2]
[391123648,1760368250233,-150.0,0.00023781,2]
[391123649,1760368250243,-172.2038179,0.00023788,2]
[391123650,1760368250255,-10220.82304853,0.000238,2]
[391123651,1760368250265,-5513.0,0.000238,5]
[391123652,1760368250274,-532.52,0.00023836,2]
[391123653,1760368250284,-159.0,0.00024,10]
[391123654,1760368250294,-159.0,0.00024,10]
[391123655,1760368250305,-3600.0,0.00024,2]
[391123656,1760368250320,-15981.11066814,0.00024,2]
[391123657,1760368250330,-10220.82304853,0.00024,2]
[391123658,1760368250340,-6953.9980613,0.00024054,4]
[391123659,1760368250350,-6535.77060726,0.00024054,4]
[391123660,1760368250361,-3643.58976164,0.0002421,2]
[391123661,1760368250372,-279.73803564,0.00024247,2]
[391123662,1760368250381,-4395.31,0.000243,7]
[391123663,1760368250392,-10220.82304853,0.000243,2]
[391123664,1760368250402,-6953.9980613,0.00024351,4]
[391123665,1760368250412,-6535.77060726,0.00024351,4]
[391123666,1760368250422,-464.9326,0.00024397,2]
[391123667,1760368250432,-10220.82304853,0.000245,2]
[391123668,1760368250442,-161.75,0.00024603,2]
[391123669,1760368250451,-500.0,0.00024619,2]
[391123670,1760368250461,-6953.9980613,0.00024648,4]
[391123671,1760368250470,-6535.77060726,0.00024648,4]
[391123672,1760368250480,-8903.38483098,0.00024657,2]
[391123673,1760368250490,-10000.0,0.00024657,6]
[391123674,1760368250500,-1000.0,0.00024658,2]
[391123675,1760368250509,-151.25,0.00024658,2]
[391123676,1760368250519,-10220.82304853,0.000247,2]
[391123677,1760368250529,-500.0,0.00024702,2]
[391123678,1760368250538,-500.0,0.00024712,2]
[391123679,1760368250548,-162.83317854,0.00024763,2]
[391123680,1760368250559,-547224.515166,0.000248,3]
[391123681,1760368250568,-606512.424533,0.000249,3]
[391123682,1760368250579,-6953.9980613,0.00024945,4]
[391123683,1760368250588,-6535.77060726,0.00024945,4]
[391123684,1760368250600,-500.0,0.00024993,2]
[391123685,1760368250611,-10000.0,0.00025,10]
[391123686,1760368250620,-4722.00083118,0.00025,3]
[391123687,1760368250630,-3764.56456526,0.00025,2]
[391123688,1760368250640,-3514.2441345,0.00025,2]
[391123689,1760368250651,-25106.152113,0.00025,2]
[391123690,1760368250661,-475.32661018,0.00025,10]
[391123691,1760368250671,-475.32661018,0.00025,3]
[391123692,1760368250682,-10220.82304853,0.00025,2]
[391123693,1760368250693,-200.0,0.00025,7]
[391123694,1760368250703,-1439.03859,0.00025,2]
[391123695,1760368250712,-1000.0,0.00025,4]
[391123696,1760368250724,-15000.0,0.0002501,2]
[391123697,1760368250736,-500.0,0.00025073,7]
[391123698,1760368250745,-3309.918,0.00025133,2]
[391123699,1760368250755,-556.0,0.00025133,2]
[391123700,1760368250765,-500.0,0.0002518,7]
[391123701,1760368250775,-16299.86899891,0.00025186,2]
[391123702,1760368250785,-191.39933913,0.0002519,2]
[391123703,1760368250795,-10220.82304853,0.000252,2]
[391123704,1760368250805,-259.50190119,0.00025205,2]
[391123705,1760368250814,-6953.9980613,0.00025242,4]
[391123706,1760368250825,-6535.77060726,0.00025242,4]
[391123707,1760368250834,-500.0,0.00025267,7]
[391123708,1760368250844,-500.0,0.0002527,7]
[391123709,1760368250854,-500.0,0.00025292,7]
[391123710,1760368250864,-208.1339408,0.00025341,3]
[391123711,1760368250873,-500.0,0.00025379,7]
[391123712,1760368250883,-500.0,0.00025429,7]
[391123713,1760368250892,-500.0,0.00025485,7]
[391123714,1760368250903,-10220.82304853,0.000255,2]
[391123715,1760368250915,-6953.9980613,0.00025538,4]
[391123716,1760368250925,-6535.77060726,0.00025538,4]
[391123717,1760368250934,-1309.0,0.00025575,2]
[391123718,1760368250944,-604.0,0.00025575,2]
[391123719,1760368250953,-571.0,0.00025575,2]
[391123720,1760368250963,-1588.0,0.00025575,2]
[391123721,1760368250974,-816.0,0.00025575,2]
[391123722,1760368250983,-4395.31,0.000256,7]
[391123723,1760368250993,-2006.92,0.00025624,30]
[391123724,1760368251002,-500.0,0.00025636,7]
[391123725,1760368251012,-1289.8372813,0.00025673,4]
[391123726,1760368251022,-9999.99,0.00025786,2]
[391123727,1760368251031,-7815.52,0.00025786,2]
[391123728,1760368251041,-500.0,0.00025798,7]
[391123729,1760368251050,-475.32661018,0.000258,3]
[391123730,1760368251061,-10220.82304853,0.000258,2]
[391123731,1760368251073,-662.5,0.00025814,15]
[391123732,1760368251083,-6953.9980613,0.00025835,4]
[391123733,1760368251093,-6535.77060726,0.00025835,4]
[391123734,1760368251102,-3000.0,0.00025879,2]
[391123735,1760368251112,-500.0,0.0002599,7]
[391123736,1760368251122,-4448.52528303,0.00026,2]
[391123737,1760368251132,-4433.65,0.00026,2]
[391123738,1760368251145,-10220.82304853,0.00026,2]
[391123739,1760368251155,-7116.0,0.00026,3]
[391123740,1760368251165,-10000.0,0.00026027,8]
[391123741,1760368251175,-600.0,0.00026027,2]
[391123742,1760368251186,-500.0,0.00026116,7]
[391123743,1760368251196,-6953.9980613,0.00026132,4]
[391123744,1760368251206,-6535.77060726,0.00026132,4]
[391123745,1760368251216,-500.0,0.00026135,7]
[391123746,1760368251226,-500.0,0.00026262,7]
[391123747,1760368251237,-10220.82304853,0.000263,2]
[391123748,1760368251247,-500.0,0.00026319,7]
[391123749,1760368251257,-27025.25648641,0.000264,2]
[391123750,1760368251267,-500.0,0.00026415,7]
[391123751,1760368251278,-6953.9980613,0.00026429,4]
[391123752,1760368251289,-6535.77060726,0.00026429,4]
[391123753,1760368251300,-642.4403892,0.00026438,2]
[391123754,1760368251313,-500.0,0.00026455,7]
[391123755,1760368251325,-475.32661018,0.000265,3]
[391123756,1760368251335,-10220.82304853,0.000265,2]
[391123757,1760368251346,-600.0,0.00026575,2]
[391123758,1760368251357,-984.98520625,0.0002666,2]
[391123759,1760368251368,-556.92,0.00026676,2]
[391123760,1760368251379,-6953.9980613,0.00026726,4]
[391123761,1760368251389,-6535.77060726,0.00026726,4]
[391123762,1760368251400,-172.2038179,0.00026751,2]
[391123763,1760368251410,-10220.82304853,0.000268,2]
[391123764,1760368251420,-1000.0,0.000269,30]
[391123765,1760368251430,-500.0,0.00026971,7]
[391123766,1760368251440,-208.1339408,0.00026976,4]
[391123767,1760368251450,-2299.99999203,0.00027,4]
[391123768,1760368251460,-8336.73217591,0.00027,5]
[391123769,1760368251471,-21047.6535851,0.00027,2]
[391123770,1760368251481,-4190.49068597,0.00027,2]
[391123771,1760368251491,-160.02379938,0.00027,2]
[391123772,1760368251501,-2291.0,0.00027,10]
[391123773,1760368251512,-3586.94563,0.00027,2]
[391123774,1760368251522,-6953.9980613,0.00027023,4]
[391123775,1760368251532,-6535.77060726,0.00027023,4]
[391123776,1760368251542,-500.0,0.00027091,7]
[391123777,1760368251552,-10220.82304853,0.000271,2]
[391123778,1760368251563,-2000.0,0.000271,2]
[391123779,1760368251580,-957.0,0.000271,2]
[391123780,1760368251591,-3620.68,0.00027123,2]
[391123781,1760368251602,-264.29,0.00027123,4]
[391123782,1760368251612,-600.0,0.00027123,2]
[391123783,1760368251622,-500.0,0.0002715,7]
[391123784,1760368251632,-500.0,0.00027162,7]
[391123785,1760368251642,-500.0,0.00027185,7]
[391123786,1760368251652,-4395.31,0.000272,7]
[391123787,1760368251662,-1071.9597,0.0002726,2]
[391123788,1760368251672,-2000.0,0.0002726,2]
[391123789,1760368251683,-6953.9980613,0.0002732,4]
[391123790,1760368251692,-6535.77060726,0.0002732,4]
[391123791,1760368251702,-4040.53608835,0.0002739,2]
[391123792,1760368251712,-7981.67793833,0.0002739,2]
[391123793,1760368251721,-5613.3,0.00027397,2]
[391123794,1760368251731,-5613.3,0.00027397,2]
[391123795,1760368251743,-5613.3,0.00027397,2]
[391123796,1760368251752,-5613.3,0.00027397,2]
[391123797,1760368251762,-5613.3,0.00027397,2]
[391123798,1760368251772,-5613.3,0.00027397,2]
[391123799,1760368251783,-4063.45,0.00027397,2]
[391123800,1760368251793,-4063.45,0.00027397,2]
[391123801,1760368251803,-4063.45,0.00027397,2]
[391123802,1760368251813,-4063.45,0.00027397,2]
[391123803,1760368251827,-4063.45,0.00027397,2]
[391123804,1760368251837,-4063.45,0.00027397,2]
[391123805,1760368251847,-4063.45,0.00027397,2]
[391123806,1760368251857,-5388.11,0.00027397,2]
[391123807,1760368251867,-5388.11,0.00027397,2]
[391123808,1760368251877,-5388.11,0.00027397,2]
[391123809,1760368251887,-5388.11,0.00027397,2]
[391123810,1760368251897,-5388.11,0.00027397,2]
[391123811,1760368251907,-5388.11,0.00027397,2]
[391123812,1760368251917,-5388.11,0.00027397,2]
[391123813,1760368251927,-5388.11,0.00027397,2]
[391123814,1760368251937,-5388.11,0.00027397,2]
[391123815,1760368251947,-5388.11,0.00027397,2]
[391123816,1760368251958,-5388.11,0.00027397,2]
[391123817,1760368251967,-5388.11,0.00027397,2]
[391123818,1760368251978,-502.49415926,0.00027397,2]
[391123819,1760368251987,-200.0,0.00027397,2]
[391123820,1760368251998,-10000.0,0.00027397,10]
[391123821,1760368252008,-150.0,0.00027397,60]
[391123822,1760368252018,-150.0,0.00027397,60]
[391123823,1760368252028,-500.0,0.00027397,60]
[391123824,1760368252039,-500.0,0.00027397,60]
[391123825,1760368252050,-500.0,0.00027397,60]
[391123826,1760368252060,-150.0,0.00027397,60]
[391123827,1760368252072,-500.59722268,0.00027397,2]
[391123828,1760368252082,-500.0,0.00027397,60]
[391123829,1760368252092,-150.0,0.00027397,52]
[391123830,1760368252103,-150.0,0.00027397,60]
[391123831,1760368252113,-150.0,0.00027397,60]
[391123832,1760368252123,-200.0,0.00027397,2]
[391123833,1760368252136,-150.0,0.00027397,60]
[391123834,1760368252146,-150.0,0.00027397,60]
[391123835,1760368252156,-500.0,0.00027397,60]
[391123836,1760368252166,-150.0,0.00027397,60]
[391123837,1760368252177,-150.14145982,0.00027397,60]
[391123838,1760368252188,-150.0,0.00027397,60]
[391123839,1760368252198,-208.03821972,0.00027397,60]
[391123840,1760368252208,-150.0,0.00027397,60]
[391123841,1760368252219,-150.0,0.00027397,60]
[391123842,1760368252229,-150.0,0.00027397,60]
[391123843,1760368252239,-150.0,0.00027397,60]
[391123844,1760368252250,-500.0,0.00027397,60]
[391123845,1760368252260,-150.0,0.00027397,60]
[391123846,1760368252270,-5325.27,0.00027397,2]
[391123847,1760368252280,-5325.27,0.00027397,2]
[391123848,1760368252291,-5325.27,0.00027397,2]
[391123849,1760368252301,-5325.27,0.00027397,2]
[391123850,1760368252314,-5325.27,0.00027397,2]
[391123851,1760368252328,-5325.27,0.00027397,2]
[391123852,1760368252339,-5325.27,0.00027397,2]
[391123853,1760368252351,-5325.27,0.00027397,2]
[391123854,1760368252668,-5325.27,0.00027397,2]
[391123855,1760368252679,-5325.27,0.00027397,2]
[391123856,1760368252688,-5325.27,0.00027397,2]
[391123857,1760368252698,-5325.27,0.00027397,2]
[391123858,1760368252708,-5325.27,0.00027397,2]
[391123859,1760368252718,-5325.27,0.00027397,2]
[391123860,1760368252728,-5325.27,0.00027397,2]
[391123861,1760368252738,-5325.27,0.00027397,2]
[391123862,1760368252748,-5325.27,0.00027397,2]
[391123863,1760368252758,-5325.27,0.00027397,2]
[391123864,1760368252768,-150.0,0.00027397,60]
[391123865,1760368252778,-5325.27,0.00027397,2]
[391123866,1760368252788,-5325.27,0.00027397,2]
[391123867,1760368252798,-5325.27,0.00027397,2]
[391123868,1760368252807,-5325.27,0.00027397,2]
[391123869,1760368252817,-5325.27,0.00027397,2]
[391123870,1760368252830,-5325.34615751,0.00027397,2]
[391123871,1760368252840,-150.0,0.00027397,60]
[391123872,1760368252850,-150.0,0.00027397,60]
[391123873,1760368252859,-150.0,0.00027397,60]
[391123874,1760368252869,-150.0,0.00027397,60]
[391123875,1760368252879,-150.0,0.00027397,60]
[391123876,1760368252890,-9645.36,0.00027397,4]
[391123877,1760368252899,-150.0,0.00027397,60]
[391123878,1760368252909,-150.0,0.00027397,60]
[391123879,1760368252918,-9645.36,0.00027397,4]
[391123880,1760368252928,-250.0,0.00027397,60]
[391123881,1760368252938,-9645.36,0.00027397,4]
[391123882,1760368252947,-9645.36,0.00027397,4]
[391123883,1760368252957,-9645.36,0.00027397,4]
[391123884,1760368252967,-9645.36,0.00027397,4]
[391123885,1760368252976,-150.0,0.00027397,2]
[391123886,1760368252985,-9645.36,0.00027397,4]
[391123887,1760368252995,-9645.36,0.00027397,4]
[391123888,1760368253004,-9645.36,0.00027397,4]
[391123889,1760368253014,-9645.36,0.00027397,4]
[391123890,1760368253023,-9645.36,0.00027397,4]
[391123891,1760368253034,-9645.36,0.00027397,4]
[391123892,1760368253044,-9645.36,0.00027397,4]
[391123893,1760368253054,-9645.36,0.00027397,4]
[391123894,1760368253064,-9645.36,0.00027397,4]
[391123895,1760368253078,-9645.36,0.00027397,4]
[391123896,1760368253089,-9645.36,0.00027397,4]
[391123897,1760368253100,-9645.36,0.00027397,4]
[391123898,1760368253111,-500.0,0.00027397,60]
[391123899,1760368253122,-9645.36,0.00027397,4]
[391123900,1760368253132,-9645.36,0.00027397,4]
[391123901,1760368253143,-9645.36,0.00027397,4]
[391123902,1760368253155,-9645.36,0.00027397,4]
[391123903,1760368253166,-9645.36,0.00027397,4]
[391123904,1760368253178,-9645.45702701,0.00027397,4]
[391123905,1760368253188,-500.0,0.00027397,14]
[391123906,1760368253199,-150.0,0.00027397,60]
[391123907,1760368253210,-500.0,0.00027397,60]
[391123908,1760368253221,-150.0,0.00027397,60]
[391123909,1760368253231,-150.0,0.00027397,2]
[391123910,1760368253242,-150.0,0.00027397,60]
[391123911,1760368253251,-151.0000005,0.00027397,2]
[391123912,1760368253261,-500.0,0.00027397,60]
[391123913,1760368253272,-150.0,0.00027397,2]
[391123914,1760368253282,-500.0,0.00027397,60]
[391123915,1760368253292,-150.0,0.00027397,2]
[391123916,1760368253306,-500.0,0.00027397,60]
[391123917,1760368253316,-500.0,0.00027397,60]
[391123918,1760368253331,-300.0,0.00027397,2]
[391123919,1760368253341,-33905.87,0.00027397,2]
[391123920,1760368253354,-214.65743643,0.00027397,2]
[391123921,1760368253364,-156.01886129,0.00027397,5]
[391123922,1760368253374,-954.66,0.000274,7]
[391123923,1760368253384,-3663.08,0.000274,2]
[391123924,1760368253394,-150.0,0.00027452,60]
[391123925,1760368253404,-500.0,0.00027452,60]
[391123926,1760368253413,-500.0,0.00027452,60]
[391123927,1760368253423,-500.0,0.00027452,60]
[391123928,1760368253433,-500.0,0.00027452,60]
[391123929,1760368253442,-150.0,0.00027452,60]
[391123930,1760368253452,-150.0,0.00027452,60]
[391123931,1760368253461,-150.0,0.00027452,60]
[391123932,1760368253470,-500.0,0.00027452,60]
[391123933,1760368253480,-150.0,0.00027452,60]
[391123934,1760368253490,-500.0,0.00027452,60]
[391123935,1760368253500,-250.56704561,0.00027452,60]
[391123936,1760368253511,-150.0,0.00027452,2]
[391123937,1760368253520,-500.0,0.00027452,60]
[391123938,1760368253530,-500.0,0.00027452,14]
[391123939,1760368253540,-150.0,0.00027452,60]
[391123940,1760368253550,-500.0,0.00027452,60]
[391123941,1760368253560,-150.0,0.00027452,60]
[391123942,1760368253576,-150.0,0.00027452,60]
[391123943,1760368253590,-500.0,0.00027452,60]
[391123944,1760368253600,-500.0,0.00027452,60]
[391123945,1760368253610,-500.0,0.00027452,60]
[391123946,1760368253621,-500.0,0.00027452,60]
[391123947,1760368253632,-1000.0,0.000275,4]
[391123948,1760368253642,-7007.8155918,0.000275,11]
[391123949,1760368253653,-200.0,0.00027507,60]
[391123950,1760368253663,-500.0,0.00027507,60]
[391123951,1760368253673,-500.0,0.00027507,60]
[391123952,1760368253685,-500.0,0.00027507,60]
[391123953,1760368253697,-500.0,0.00027507,60]
[391123954,1760368253708,-150.0,0.00027507,60]
[391123955,1760368253719,-300.0,0.00027507,60]
[391123956,1760368253730,-150.0,0.00027507,60]
[391123957,1760368253741,-500.0,0.00027507,60]
[391123958,1760368253752,-150.0,0.00027507,2]
[391123959,1760368253762,-500.0,0.00027507,60]
[391123960,1760368253772,-500.0,0.00027507,14]
[391123961,1760368253782,-150.0,0.00027507,60]